fUSD/lending_fUSD_20240204
["ID","MTS","AMOUNT","RATE_DAILY","PERIOD"]
[313269280,1707063039084,-191.47238766,0.00022991,2]
[313269282,1707063039093,-262.17627751,0.00022991,2]
[313269284,1707063039103,-164.25679865,0.00022991,2]
[313269286,1707063039112,-410.18797696,0.00022991,2]
[313269288,1707063039121,-371.55136848,0.00022991,2]
[313269290,1707063039130,-1189.38681246,0.00022991,2]
[313269292,1707063039139,-1240.96670007,0.00022991,2]
[313269294,1707063039148,-260.7381562,0.00022992,2]
[313269296,1707063039157,-4138.74864723,0.00022992,2]
[313269298,1707063039167,-230.25647857,0.00022993,2]
[313269300,1707063039176,-2104.8513,0.00022993,2]
[313269302,1707063039186,-365.220922,0.00022993,2]
[313269304,1707063039195,-2137.33040402,0.00022993,2]
[313269306,1707063039204,-3828.48490855,0.00022993,2]
[313269309,1707063039214,-310.6842223,0.00022993,2]
[313269311,1707063039223,-292.59208088,0.00022993,2]
[313269313,1707063039237,-392.87874065,0.00022993,2]
[313269314,1707063039249,-330.9142419,0.00022993,2]
[313269317,1707063039258,-2151.72993286,0.00022993,2]
[313269319,1707063039267,-353.17177551,0.00022993,2]
[313269321,1707063039278,-186.69496292,0.00022993,2]
[313269322,1707063039288,-155.84654158,0.00022993,2]
[313269324,1707063039298,-432.75226238,0.00022993,2]
[313269326,1707063039307,-360.7367215,0.00022993,4]
[313269328,1707063039317,-199.03575703,0.00022993,2]
[313269330,1707063039327,-201.38841729,0.00022993,2]
[313269333,1707063039336,-157.85130347,0.00022993,2]
[313269335,1707063039345,-156.95965646,0.00022993,2]
[313269337,1707063039355,-155.35453074,0.00022993,2]
[313269339,1707063039364,-156.62849969,0.00022993,2]
[313269341,1707063039373,-202.76099161,0.00022993,2]
[313269343,1707063039382,-207.74847305,0.00022993,2]
[313269345,1707063039391,-155.92605212,0.00022993,2]
[313269347,1707063039401,-503.04226375,0.00022993,2]
[313269349,1707063039411,-155.54495459,0.00022993,2]
[313269351,1707063039420,-426.29807876,0.00022993,2]
[313269353,1707063039429,-163.58982488,0.00022993,2]
[313269355,1707063039439,-204.8999602,0.00022993,2]
[313269357,1707063039448,-334.1340822,0.00022993,2]
[313269359,1707063039458,-449.66200753,0.00022993,2]
[313269361,1707063039467,-8984.77044726,0.00022993,2]
[313269363,1707063039476,-929.94153038,0.00022993,2]
[313269365,1707063039485,-3653.57827094,0.00022994,2]
[313269367,1707063039494,-155.0,0.00022994,2]
[313269369,1707063039508,-400.0,0.00022995,2]
[313269371,1707063039517,-155.0,0.00022995,2]
[313269373,1707063039526,-199.85856477,0.00022995,2]
[313269375,1707063039535,-769.01361155,0.00022995,2]
[313269377,1707063039544,-35860.24987066,0.00022996,2]
[313269379,1707063039553,-214.26983669,0.00022998,2]
[313269381,1707063039562,-225963.4710457,0.00022998,2]
[313269383,1707063039572,-189.72421812,0.00022998,2]
[313269385,1707063039581,-182.65398675,0.00022998,2]
[313269387,1707063039589,-200.0,0.00022998,2]
[313269389,1707063039599,-179.0,0.00022998,2]
[313269391,1707063039610,-10578.78248766,0.00022999,2]
[313269393,1707063039619,-500.0,0.00022999,2]
[313269394,1707063039631,-500.0,0.00022999,2]
[313269395,1707063039640,-500.0,0.00022999,2]
[313269396,1707063039649,-500.0,0.00022999,2]
[313269397,1707063039657,-388.97588699,0.00022999,2]
[313269398,1707063039666,-500.0,0.00022999,2]
[313269399,1707063039675,-500.0,0.00022999,2]
[313269400,1707063039684,-500.0,0.00022999,2]
[313269401,1707063039693,-199.18086724,0.00022999,2]
[313269403,1707063039701,-500.0,0.00022999,2]
[313269405,1707063039710,-362.97567081,0.00022999,2]
[313269406,1707063039719,-500.0,0.00022999,2]
[313269408,1707063039729,-328.76140098,0.00022999,2]
[313269411,1707063039738,-500.0,0.00022999,2]
[313269413,1707063039749,-260.74566897,0.00022999,2]
[313269414,1707063039758,-490.71600194,0.00022999,2]
[313269416,1707063039767,-500.0,0.00022999,2]
[313269419,1707063039778,-500.0,0.00022999,2]
[313269420,1707063039787,-233.23111169,0.00023,2]
[313269422,1707063039798,-230.71821896,0.00023,2]
[313269425,1707063039808,-153.81214597,0.00023,2]
[313269427,1707063039818,-10470.22664224,0.00023,3]
[313269429,1707063039827,-1141.75081412,0.00023,3]
[313269430,1707063039836,-17016277.91434045,0.00023,2]
[313269432,1707063039846,-1165707.33222685,0.00023,2]
[313269434,1707063039855,-290.4,0.00023,2]
[313269436,1707063039865,-1000.0,0.00023,2]
[313269438,1707063039874,-1000.0,0.00023,2]
[313269440,1707063039885,-1000.0,0.00023,2]
[313269442,1707063039894,-157.49,0.00023068,2]
[313269444,1707063039903,-257.9,0.00023082,2]
[313269446,1707063039912,-257.9,0.00023219,2]
[313269448,1707063039921,-157.49,0.00023233,2]
[313269450,1707063039931,-257.9,0.00023356,2]
[313269452,1707063039942,-257.9,0.00023493,2]
[313269454,1707063039950,-758.89,0.00023563,2]
[313269456,1707063039960,-151.55964903,0.00023585,2]
[313269458,1707063039968,-257.9,0.0002363,2]
[313269460,1707063039978,-257.9,0.00023767,2]
[313269462,1707063039987,-257.9,0.00023904,2]
[313269464,1707063039996,-201.83380007,0.00024,2]
[313269466,1707063040005,-600.0,0.00024,3]
[313269469,1707063040015,-257.9,0.00024041,2]
[313269470,1707063040024,-203.22,0.00024074,2]
[313269472,1707063040034,-167.47,0.00024076,2]
[313269474,1707063040042,-171.17,0.00024107,2]
[313269477,1707063040054,-257.9,0.00024178,2]
[313269478,1707063040063,-151.55964903,0.00024283,2]
[313269480,1707063040074,-168.2457248,0.000243,2]
[313269483,1707063040085,-257.9,0.00024315,2]
[313269484,1707063040094,-5278.13,0.00024384,2]
[313269486,1707063040103,-257.9,0.00024452,2]
[313269488,1707063040112,-396.26,0.00024525,2]
[313269490,1707063040121,-257.9,0.00024589,2]
[313269492,1707063040130,-825.62,0.00024628,2]
[313269494,1707063040139,-3122.0,0.00024658,2]
[313269496,1707063040148,-250.0,0.00024658,2]
[313269498,1707063040157,-2500.0,0.00024658,3]
[313269500,1707063040166,-177.47,0.00024659,2]
[313269503,1707063040175,-339.5,0.00024662,2]
[313269504,1707063040185,-393.0,0.00024777,2]
[313269506,1707063040194,-151.55964903,0.0002498,2]
[313269508,1707063040203,-936.86679501,0.00025,2]
[313269510,1707063040212,-304.58743218,0.00025,2]
[313269512,1707063040221,-1906.40505966,0.00025,2]
[313269514,1707063040234,-167.98637528,0.00025,2]
[313269517,1707063040245,-1589.3927025,0.00025,2]
[313269519,1707063040255,-202.77097058,0.00025,2]
[313269521,1707063040264,-799.604117,0.00025,2]
[313269523,1707063040275,-167.47,0.00025171,2]
[313269525,1707063040285,-758.89,0.00025206,2]
[313269527,1707063040294,-1291.9173814,0.000255,2]
[313269529,1707063040305,-155.59,0.00025605,120]
[313269531,1707063040314,-151.55964903,0.00025677,2]
[313269533,1707063040324,-650.0,0.00026,3]
[313269535,1707063040333,-150.0,0.00026079,2]
[313269537,1707063040342,-167.47,0.00026265,2]
[313269539,1707063040351,-171.17,0.00026299,2]
[313269541,1707063040360,-151.55964903,0.00026375,2]
[313269543,1707063040369,-83222.32540261,0.00026482,2]
[313269545,1707063040377,-37680.62282275,0.00026482,2]
[313269547,1707063040386,-5480.49638237,0.00026482,2]
[313269549,1707063040396,-396.26,0.00026789,2]
[313269551,1707063040405,-758.89,0.0002685,2]
[313269553,1707063040414,-560.72234736,0.00027,2]
[313269555,1707063040423,-500.0,0.00027,7]
[313269557,1707063040433,-151.55964903,0.00027072,2]
[313269559,1707063040442,-28870.0,0.000273,2]
[313269561,1707063040451,-3311.0,0.000273,2]
[313269563,1707063040460,-825.62,0.00027364,2]
[313269565,1707063040469,-155.0,0.00027397,2]
[313269566,1707063040478,-339.5,0.00027402,2]
[313269568,1707063040487,-156.08841774,0.00027473,2]
[313269571,1707063040498,-153.29405713,0.00027708,2]
[313269573,1707063040507,-151.55964903,0.00027769,2]
[313269575,1707063040517,-691.57738315,0.00028,2]
[313269577,1707063040526,-7240.44894109,0.00028,2]
[313269579,1707063040537,-700.0,0.00028,3]
[313269581,1707063040546,-153.29405713,0.00028199,2]
[313269583,1707063040555,-156.08841774,0.00028362,2]
[313269585,1707063040564,-1364.75404586,0.00028397,2]
[313269587,1707063040573,-151.55964903,0.00028467,2]
[313269588,1707063040582,-758.89,0.00028494,2]
[313269590,1707063040591,-156.80178581,0.00028534,2]
[313269592,1707063040600,-155.0,0.00028767,2]
[313269594,1707063040609,-200.0,0.00028938,2]
[313269596,1707063040618,-206.0,0.00028938,2]
[313269598,1707063040627,-205.0,0.00028938,2]
[313269601,1707063040637,-3496.0446028,0.00029,15]
[313269603,1707063040647,-396.26,0.00029053,2]
[313269604,1707063040656,-6808.75814481,0.00029135,4]
[313269607,1707063040665,-5146.71090879,0.00029135,3]
[313269609,1707063040675,-2200.2189135,0.00029135,3]
[313269610,1707063040684,-151.55964903,0.00029164,2]
[313269612,1707063040693,-156.08841774,0.00029178,2]
[313269614,1707063040701,-155.59,0.00029262,120]
[313269616,1707063040711,-1364.75404586,0.00029308,2]
[313269618,1707063040720,-1364.75404586,0.00029321,2]
[313269623,1707063040729,-1364.75404586,0.00029413,2]
[313269626,1707063040738,-293.82693767,0.000295,2]
[313269630,1707063040748,-176.13214682,0.000298,2]
[313269633,1707063040757,-151.55964903,0.00029861,2]
[313269636,1707063040768,-1364.75404586,0.00029919,2]
[313269639,1707063040777,-311.32327923,0.0003,4]
[313269641,1707063040787,-2650.39642541,0.0003,4]
[313269643,1707063040795,-9674.94675906,0.0003,2]
[313269645,1707063040805,-584.86692262,0.0003,2]
[313269648,1707063040814,-159.23429285,0.0003,4]
[313269651,1707063040823,-155.0,0.0003,2]
[313269654,1707063040832,-544.62906183,0.0003,4]
[313269657,1707063040842,-366.35045093,0.0003,2]
[313269659,1707063040851,-2544.9040201,0.0003,4]
[313269682,1707063040860,-546.42727628,0.0003,2]
[313269685,1707063040979,-1583.37724857,0.0003,4]
[313269687,1707063040987,-12500.00927766,0.0003,3]
[313269689,1707063040996,-406.72444905,0.0003,4]
[313269691,1707063041005,-155.0,0.0003,4]
[313269693,1707063041014,-19109.07673316,0.0003,4]
[313269695,1707063041023,-452.90403359,0.0003,2]
[313269697,1707063041032,-1813.8010918,0.0003,4]
[313269699,1707063041041,-909.32407402,0.0003,4]
[313269701,1707063041050,-528.40754829,0.0003,4]
[313269703,1707063041059,-817.74425652,0.0003,4]
[313269705,1707063041068,-1204.55554,0.0003,2]
[313269707,1707063041077,-154.55,0.0003,2]
[313269709,1707063041085,-154.55,0.0003,2]
[313269711,1707063041094,-500.0,0.0003,2]
[313269713,1707063041103,-1000.0,0.0003,2]
[313269715,1707063041112,-3000.0,0.0003,2]
[313269717,1707063041121,-3000.0,0.0003,2]
[313269719,1707063041130,-3000.0,0.0003,2]
[313269721,1707063041140,-3000.0,0.0003,2]
[313269723,1707063041149,-3000.0,0.0003,2]
[313269725,1707063041158,-3000.0,0.0003,2]
[313269727,1707063041167,-200.0,0.00030047,4]
[313269729,1707063041175,-1000.0,0.000301,2]
[313269731,1707063041185,-825.62,0.00030101,2]
[313269733,1707063041193,-150.0,0.00030137,2]
[313269735,1707063041202,-155.0,0.00030137,2]
[313269737,1707063041211,-758.89,0.00030138,2]
[313269739,1707063041220,-339.5,0.00030142,2]
[313269741,1707063041230,-1000.0,0.000302,2]
[313269742,1707063041241,-1000.0,0.000303,3]
[313269744,1707063041250,-1000.0,0.000304,3]
[313269746,1707063041259,-153.237,0.00030502,7]
[313269749,1707063041270,-1364.75404586,0.00030525,7]
[313269751,1707063041281,-153.29405713,0.00030541,7]
[313269753,1707063041290,-151.55964903,0.00030559,2]
[313269755,1707063041299,-1364.75404586,0.00030655,7]
[313269757,1707063041308,-150.0,0.00030714,2]
[313269758,1707063041318,-1364.75404586,0.00030951,7]
[313269761,1707063041327,-333.70196426,0.00031,4]
[313269762,1707063041336,-214.95459598,0.00031,4]
[313269765,1707063041346,-1364.75404586,0.00031057,7]
[313269767,1707063041355,-200.0,0.00031157,6]
[313269769,1707063041364,-156.08841774,0.00031226,7]
[313269771,1707063041373,-151.55964903,0.00031256,2]
[313269773,1707063041382,-150.0,0.00031291,2]
[313269775,1707063041392,-396.26,0.00031317,2]
[313269777,1707063041402,-154.98375468,0.00031394,7]
[313269779,1707063041410,-1364.75404586,0.00031526,7]
[313269781,1707063041420,-180.0,0.00031644,2]
[313269783,1707063041429,-156.08841774,0.00031718,7]
[313269785,1707063041438,-359.35200672,0.0003179,2]
[313269787,1707063041447,-267528.503042,0.000318,3]
[313269789,1707063041456,-150.0,0.00031867,2]
[313269790,1707063041465,-151.55964903,0.00031953,2]
[313269793,1707063041475,-1364.75404586,0.00031985,7]
[313269795,1707063041484,-13061.97872233,0.00032,4]
[313269796,1707063041493,-200.0,0.00032266,8]
[313269798,1707063041502,-160.99975112,0.0003227,7]
[313269800,1707063041511,-150.0,0.00032444,2]
[313269803,1707063041521,-162.78791501,0.000325,2]
[313269805,1707063041530,-154.98375468,0.00032537,7]
[313269807,1707063041539,-162.50678445,0.0003254,7]
[313269809,1707063041548,-151.55964903,0.00032651,2]
[313269810,1707063041557,-1364.75404586,0.00032752,7]
[313269812,1707063041567,-825.62,0.00032837,2]
[313269815,1707063041576,-500.0,0.00032877,2]
[313269817,1707063041585,-26863.75,0.00032877,2]
[313269819,1707063041594,-339.5,0.00032882,2]
[313269821,1707063041603,-164.4747673,0.00032914,7]
[313269823,1707063041612,-155.59,0.0003292,120]
[313269825,1707063041622,-991.25,0.00032986,7]
[313269827,1707063041631,-5744.05158661,0.00033,2]
[313269829,1707063041640,-4000.0,0.00033,2]
[313269831,1707063041650,-150.0,0.00033021,2]
[313269833,1707063041658,-154.98375468,0.00033045,7]
[313269835,1707063041668,-151.94956887,0.00033055,7]
[313269837,1707063041677,-174.18685595,0.0003309,7]
[313269838,1707063041687,-627.49,0.00033151,120]
[313269839,1707063041696,-151.55964903,0.00033348,2]
[313269840,1707063041707,-200.0,0.00033375,10]
[313269841,1707063041716,-1364.75404586,0.0003346,7]
[313269842,1707063041725,-875.45,0.000335,2]
[313269843,1707063041734,-875.45,0.000335,2]
[313269844,1707063041744,-875.45,0.000335,2]
[313269845,1707063041753,-875.45,0.000335,2]
[313269847,1707063041762,-875.45,0.000335,2]
[313269849,1707063041771,-875.45,0.000335,2]
[313269851,1707063041780,-875.45,0.000335,2]
[313269853,1707063041790,-875.45,0.000335,2]
[313269855,1707063041799,-875.45,0.000335,2]
[313269857,1707063041808,-875.45,0.000335,2]
[313269859,1707063041816,-875.45,0.000335,2]
[313269861,1707063041825,-875.45,0.000335,2]
[313269863,1707063041834,-875.45,0.000335,2]
[313269865,1707063041847,-875.45,0.000335,2]
[313269867,1707063041856,-875.45,0.000335,2]
[313269869,1707063041866,-234.90874,0.00033503,7]
[313269871,1707063041875,-396.26,0.00033581,2]
[313269873,1707063041884,-150.0,0.00033598,2]
[313269876,1707063041894,-154.98375468,0.00033697,7]
[313269878,1707063041903,-1364.75404586,0.00033954,7]
[313269879,1707063041912,-765.94522118,0.00034,4]
[313269881,1707063041923,-151.55964903,0.00034045,2]
[313269883,1707063041934,-150.0,0.00034175,2]
[313269885,1707063041943,-160.99975112,0.00034299,7]
[313269887,1707063041952,-154.55,0.000343,2]
[313269889,1707063041962,-154.55,0.000343,2]
[313269891,1707063041972,-154.55,0.000343,2]
[313269893,1707063041981,-154.55,0.000343,2]
[313269895,1707063041990,-154.98375468,0.000343,7]
[313269897,1707063041999,-254.0,0.00034313,5]
[313269899,1707063042008,-200.0,0.00034485,12]
[313269901,1707063042017,-1364.75404586,0.0003458,7]
[313269903,1707063042026,-4931.89358001,0.0003465,2]
[313269905,1707063042036,-996.548462,0.0003466,2]
[313269907,1707063042044,-594.806447,0.0003466,2]
[313269909,1707063042055,-218.707206,0.0003466,2]
[313269911,1707063042063,-224.906848,0.0003466,2]
[313269913,1707063042072,-151.55964903,0.00034743,2]
[313269915,1707063042082,-150.0,0.00034751,2]
[313269917,1707063042091,-1364.75404586,0.00034851,7]
[313269919,1707063042100,-5973.25944341,0.000349,4]
[313269921,1707063042110,-1545.4974548,0.000349,2]
[313269923,1707063042119,-1545.49745465,0.000349,2]
[313269925,1707063042128,-1545.49745465,0.000349,2]
[313269927,1707063042137,-1545.49745465,0.000349,2]
[313269929,1707063042146,-1545.49745465,0.000349,2]
[313269931,1707063042156,-1545.49745465,0.000349,2]
[313269933,1707063042165,-1545.49745465,0.000349,2]
[313269936,1707063042175,-1545.49745465,0.000349,2]
[313269938,1707063042185,-178.41510956,0.00035,2]
[313269940,1707063042195,-450.12144164,0.00035,4]
[313269941,1707063042204,-155.0,0.00035,2]
[313269944,1707063042213,-221.77404607,0.00035,4]
[313269945,1707063042223,-390.3945362,0.00035,4]
[313269947,1707063042237,-155.0,0.00035,4]
[313269950,1707063042248,-155.72128039,0.00035,4]
[313269951,1707063042257,-506.70395449,0.00035,10]
[313269953,1707063042266,-4121.06501349,0.00035,4]
[313269956,1707063042277,-618.93686286,0.00035,2]
[313269957,1707063042286,-228.46279434,0.00035,4]
[313269959,1707063042295,-285.7226895,0.00035,7]
[313269961,1707063042306,-7095.85099765,0.00035,4]
[313269963,1707063042315,-3000.0,0.00035,11]
[313269966,1707063042325,-243.48102715,0.00035,2]
[313269967,1707063042335,-243.48102715,0.00035,2]
[313269969,1707063042345,-243.48102715,0.00035,2]
[313269971,1707063042353,-185.07156446,0.00035,2]
[313269973,1707063042362,-450.0,0.00035,3]
[313269976,1707063042372,-30303.54669463,0.00035,2]
[313269978,1707063042382,-30303.54669463,0.00035,2]
[313269980,1707063042391,-30303.54669463,0.00035,2]
[313269982,1707063042400,-30303.54669463,0.00035,2]
[313269984,1707063042409,-3000.0,0.0003501,11]
[313269986,1707063042418,-5445.117097,0.0003502,11]
[313269988,1707063042428,-158.994242,0.00035036,2]
[313269989,1707063042438,-162.50678445,0.00035039,7]
[313269992,1707063042447,-996.548462,0.00035093,2]
[313269994,1707063042456,-594.806447,0.00035093,2]
[313269995,1707063042465,-218.707206,0.00035093,2]
[313269997,1707063042474,-224.906848,0.00035093,2]
[313270000,1707063042484,-150.0,0.00035328,2]
[313270002,1707063042493,-151.55964903,0.0003544,2]
[313270004,1707063042502,-1545.49745465,0.00035518,2]
[313270006,1707063042511,-996.548462,0.00035527,2]
[313270008,1707063042520,-594.806447,0.00035527,2]
[313270010,1707063042529,-218.707206,0.00035527,2]
[313270012,1707063042538,-224.906848,0.00035527,2]
[313270014,1707063042547,-160.99975112,0.00035545,7]
[313270016,1707063042556,-174.18685595,0.00035588,7]
[313270018,1707063042565,-200.0,0.00035594,14]
[313270020,1707063042574,-150.0,0.00035616,2]
[313270022,1707063042584,-300.0,0.00035616,7]
[313270023,1707063042593,-450.0,0.00035616,12]
[313270026,1707063042603,-318.98895078,0.00035616,17]
[313270028,1707063042613,-5278.13,0.00035616,2]
[313270030,1707063042622,-10000.0,0.00035616,2]
[313270032,1707063042631,-160.99975112,0.00035766,7]
[313270034,1707063042641,-687.08930327,0.00035819,2]
[313270036,1707063042649,-396.26,0.00035845,2]
[313270038,1707063042659,-154.98375468,0.0003586,7]
[313270040,1707063042668,-150.0,0.00035905,2]
[313270042,1707063042677,-158.994242,0.00035912,2]
[313270043,1707063042687,-996.548462,0.0003596,2]
[313270045,1707063042695,-594.806447,0.0003596,2]
[313270047,1707063042704,-218.707206,0.0003596,2]
[313270049,1707063042713,-224.906848,0.0003596,2]
[313270051,1707063042722,-299.32441982,0.00036,4]
[313270053,1707063042731,-303.25047033,0.000361,4]
[313270055,1707063042740,-1364.75404586,0.00036115,7]
[313270057,1707063042749,-151.55964903,0.00036137,2]
[313270059,1707063042758,-1754.00469909,0.00036301,30]
[313270061,1707063042767,-483.0,0.00036309,5]
[313270064,1707063042777,-151.94956887,0.00036315,7]
[313270066,1707063042786,-156.08841774,0.00036335,7]
[313270068,1707063042795,-996.548462,0.00036393,2]
[313270069,1707063042804,-594.806447,0.00036393,2]
[313270072,1707063042813,-218.707206,0.00036393,2]
[313270074,1707063042823,-224.906848,0.00036393,2]
[313270076,1707063042832,-166.24,0.00036438,2]
[313270078,1707063042842,-150.0,0.00036482,2]
[313270079,1707063042853,-13146.66107917,0.000365,5]
[313270082,1707063042863,-200.0,0.00036703,16]
[313270083,1707063042872,-44961.0,0.00036773,20]
[313270085,1707063042881,-158.994242,0.00036788,2]
[313270087,1707063042890,-151.55964903,0.00036835,2]
[313270090,1707063042899,-1811.19535764,0.000369,7]
[313270092,1707063042908,-452.0,0.000369,2]
[313270093,1707063042917,-1000.0,0.000369,2]
[313270096,1707063042927,-875.45,0.000369,3]
[313270098,1707063042936,-875.45,0.000369,3]
[313270100,1707063042945,-875.45,0.000369,3]
[313270102,1707063042954,-875.45,0.000369,3]
[313270104,1707063042962,-875.45,0.000369,3]
[313270106,1707063042971,-875.45,0.000369,3]
[313270107,1707063042980,-875.45,0.000369,3]
[313270110,1707063042990,-875.45,0.000369,3]
[313270112,1707063043000,-875.45,0.000369,3]
[313270113,1707063043009,-875.45,0.000369,3]
[313270115,1707063043017,-875.45,0.000369,3]
[313270117,1707063043028,-875.45,0.000369,3]
[313270119,1707063043037,-875.45,0.000369,3]
[313270121,1707063043046,-875.45,0.000369,3]
[313270124,1707063043056,-875.45,0.000369,3]
[313270125,1707063043066,-875.45,0.000369,3]
[313270129,1707063043075,-348.0,0.000369,2]
[313270130,1707063043085,-10000.0,0.00036934,2]
[313270132,1707063043094,-171.87975763,0.00037,5]
[313270135,1707063043103,-150.0,0.00037059,2]
[313270137,1707063043112,-1545.49745465,0.00037097,2]
[313270140,1707063043122,-6870.64976652,0.00037146,2]
[313270142,1707063043130,-44961.0,0.00037152,20]
[313270145,1707063043139,-155.15706483,0.00037185,7]
[313270148,1707063043148,-155.15706483,0.00037286,7]
[313270151,1707063043157,-200.0,0.000374,2]
[313270153,1707063043167,-1970.77972657,0.000374,2]
[313270155,1707063043176,-4050.67071956,0.000374,15]
[313270159,1707063043185,-5637.40464828,0.000374,2]
[313270161,1707063043194,-2987.0187724,0.000374,4]
[313270163,1707063043203,-155.0,0.000374,4]
[313270165,1707063043212,-686.62489687,0.000374,4]
[313270167,1707063043222,-160.99975112,0.0003742,7]
[313270169,1707063043235,-44961.0,0.00037531,20]
[313270171,1707063043243,-151.55964903,0.00037532,2]
[313270174,1707063043253,-151.94956887,0.00037583,7]
[313270178,1707063043264,-150.0,0.00037635,2]
[313270181,1707063043273,-177000.0,0.000377,3]
[313270182,1707063043283,-153.29405713,0.00037755,7]
[313270184,1707063043292,-200.0,0.00037813,18]
[313270186,1707063043301,-230.40495837,0.0003789,7]
[313270188,1707063043312,-1225.14299131,0.000379,7]
[313270190,1707063043322,-636891.757894,0.000379,3]
[313270193,1707063043332,-44961.0,0.0003791,20]
[313270194,1707063043342,-1220441.47804854,0.00038,2]
[313270196,1707063043352,-872705.03171553,0.00038,2]
[313270199,1707063043361,-308.0,0.00038,27]
[313270201,1707063043371,-193.0,0.00038,2]
[313270213,1707063043380,-30303.54669463,0.00038,2]
[313270215,1707063043494,-396.26,0.00038109,2]
[313270218,1707063043503,-150.0,0.00038212,2]
[313270220,1707063043513,-151.55964903,0.00038229,2]
[313270221,1707063043522,-10000.0,0.00038252,2]
[313270224,1707063043533,-44961.0,0.00038289,20]
[313270226,1707063043542,-150.0,0.00038356,2]
[313270227,1707063043552,-1903.99182069,0.0003844,4]
[313270230,1707063043561,-308.0,0.000385,28]
[313270231,1707063043571,-1364.75404586,0.00038527,7]
[313270234,1707063043580,-154.55,0.000386,3]
[313270236,1707063043589,-154.55,0.000386,3]
[313270237,1707063043599,-154.55,0.000386,3]
[313270238,1707063043608,-154.55,0.000386,3]
[313270239,1707063043617,-44961.0,0.00038668,20]
[313270240,1707063043626,-1545.49745465,0.00038675,2]
[313270241,1707063043635,-160.99975112,0.00038718,7]
[313270242,1707063043645,-150.0,0.00038789,2]
[313270243,1707063043654,-30612.70331201,0.000388,4]
[313270244,1707063043663,-2090.8887372,0.0003888,2]
[313270246,1707063043672,-2090.88873719,0.0003888,2]
[313270248,1707063043681,-2090.88873719,0.0003888,2]
[313270250,1707063043691,-2090.88873719,0.0003888,2]
[313270252,1707063043700,-2090.88873719,0.0003888,2]
[313270254,1707063043709,-2090.88873719,0.0003888,2]
[313270256,1707063043718,-2090.88873719,0.0003888,2]
[313270258,1707063043728,-2090.88873719,0.0003888,2]
[313270260,1707063043737,-2090.88873719,0.0003888,2]
[313270262,1707063043747,-2090.88873719,0.0003888,2]
[313270264,1707063043756,-4022.05534833,0.000389,15]
[313270266,1707063043765,-200.0,0.00038922,20]
[313270268,1707063043775,-156.08841774,0.00038925,7]
[313270270,1707063043786,-151.55964903,0.00038927,2]
[313270272,1707063043795,-174.18685595,0.00038938,7]
[313270274,1707063043805,-404.27978998,0.0003898,2]
[313270276,1707063043815,-2048.01963368,0.00039,2]
[313270278,1707063043824,-979.97241271,0.00039,4]
[313270280,1707063043833,-169.58208488,0.00039,5]
[313270282,1707063043842,-164.49043128,0.00039,120]
[313270284,1707063043851,-308.0,0.00039,28]
[313270286,1707063043861,-44961.0,0.00039047,20]
[313270288,1707063043869,-1000.0,0.0003926,2]
[313270290,1707063043879,-150.0,0.000393,7]
[313270292,1707063043888,-150.0,0.00039366,2]
[313270294,1707063043897,-150.0,0.00039366,2]
[313270296,1707063043908,-7999.99,0.000395,28]
[313270298,1707063043918,-4720.71913621,0.000395,4]
[313270300,1707063043926,-308.0,0.000395,29]
[313270302,1707063043937,-1364.75404586,0.00039548,7]
[313270304,1707063043946,-10000.0,0.0003957,2]
[313270306,1707063043955,-500.0,0.000396,7]
[313270309,1707063043965,-151.55964903,0.00039624,5]
[313270310,1707063043975,-1000.0,0.000398,2]
[313270313,1707063043985,-150.0,0.00039942,2]